fUSD/lending_fUSD_20251027
["ID","MTS","AMOUNT","RATE_DAILY","PERIOD"]
[392512892,1761596935497,-1000.0,0.00035471,2]
[392512893,1761596935519,-1000.0,0.00035471,2]
[392512894,1761596935542,-160.06,0.00035479,60]
[392512895,1761596935564,-683.36361178,0.00035484,2]
[392512896,1761596935588,-576.89336319,0.00035516,2]
[392512897,1761596935610,-16965.5107254,0.00035529,3]
[392512898,1761596935633,-820.0,0.00035539,2]
[392512899,1761596935656,-573.0,0.00035539,2]
[392512900,1761596935678,-2055.0,0.00035539,2]
[392512901,1761596935701,-1313.0,0.00035539,2]
[392512902,1761596935728,-1593.0,0.00035539,2]
[392512903,1761596935750,-606.0,0.00035539,2]
[392512904,1761596935773,-818.0,0.00035539,2]
[392512905,1761596935795,-1270.0,0.00035539,2]
[392512906,1761596935820,-3490.0,0.00035539,2]
[392512907,1761596935843,-557.29,0.00035539,2]
[392512908,1761596935865,-904.0,0.00035539,2]
[392512909,1761596935887,-1186.0,0.00035539,2]
[392512910,1761596935909,-496.87022625,0.0003554,2]
[392512911,1761596935932,-5785.43832021,0.0003554,2]
[392512912,1761596935955,-8853.35185354,0.00035552,2]
[392512913,1761596935979,-152.43,0.00035557,60]
[392512914,1761596936001,-174.93,0.00035559,2]
[392512915,1761596936027,-500.0,0.00035562,30]
[392512916,1761596936052,-174.93,0.00035579,2]
[392512917,1761596936076,-16965.5107254,0.00035579,3]
[392512918,1761596936099,-160.06,0.00035579,60]
[392512919,1761596936121,-594.67662468,0.00035588,30]
[392512920,1761596936143,-2440.0,0.00035589,2]
[392512921,1761596936166,-166.0,0.00035589,2]
[392512922,1761596936266,-2789.0,0.00035589,2]
[392512923,1761596936295,-20487.0,0.00035589,2]
[392512924,1761596936317,-4896.0,0.00035589,2]
[392512925,1761596936339,-2674.0,0.00035589,2]
[392512926,1761596936362,-208.55538238,0.00035589,7]
[392512927,1761596936384,-231.29298876,0.00035589,7]
[392512928,1761596936408,-280.76772226,0.00035589,7]
[392512929,1761596936432,-246.46040071,0.00035589,7]
[392512930,1761596936458,-215.30284772,0.00035589,7]
[392512931,1761596936483,-154.47723845,0.00035589,7]
[392512932,1761596936506,-156.69002571,0.00035589,7]
[392512933,1761596936528,-154.35941027,0.00035589,7]
[392512934,1761596936549,-174.93,0.00035595,2]
[392512935,1761596936571,-174.93,0.00035596,2]
[392512936,1761596936593,-174.93,0.00035596,2]
[392512937,1761596936616,-500.0,0.00035605,2]
[392512938,1761596936639,-174.93,0.00035605,2]
[392512939,1761596936662,-174.93,0.00035606,2]
[392512940,1761596936684,-118758.575078,0.00035606,3]
[392512941,1761596936707,-279.43,0.00035608,2]
[392512942,1761596936729,-500.0,0.00035615,7]
[392512943,1761596936751,-500.0,0.00035615,7]
[392512944,1761596936774,-500.0,0.00035615,7]
[392512945,1761596936796,-500.0,0.00035615,7]
[392512946,1761596936818,-500.0,0.00035615,7]
[392512947,1761596936841,-500.0,0.00035615,7]
[392512948,1761596936864,-500.0,0.00035615,2]
[392512949,1761596936888,-500.0,0.00035615,2]
[392512950,1761596936911,-153.98124979,0.00035615,20]
[392512951,1761596936935,-155.639685,0.00035616,7]
[392512952,1761596936957,-1000.0,0.00035616,2]
[392512953,1761596936979,-503.80633619,0.00035616,7]
[392512954,1761596937003,-503.73600954,0.00035616,7]
[392512955,1761596937024,-500.0,0.00035616,7]
[392512956,1761596937046,-502.36047717,0.00035616,7]
[392512957,1761596937071,-500.0,0.00035616,7]
[392512958,1761596937096,-504.13759346,0.00035616,7]
[392512959,1761596937119,-500.0,0.00035616,7]
[392512960,1761596937141,-516.8044431,0.00035616,7]
[392512961,1761596937163,-647.53774814,0.00035616,7]
[392512962,1761596937185,-500.0,0.00035616,7]
[392512963,1761596937208,-500.0,0.00035616,7]
[392512964,1761596937230,-500.0,0.00035616,7]
[392512965,1761596937253,-500.0,0.00035616,7]
[392512966,1761596937277,-500.0,0.00035616,7]
[392512967,1761596937300,-500.0,0.00035616,7]
[392512968,1761596937322,-500.0,0.00035616,7]
[392512969,1761596937344,-500.0,0.00035616,7]
[392512970,1761596937366,-500.0,0.00035616,7]
[392512971,1761596937388,-503.58314282,0.00035616,7]
[392512972,1761596937410,-500.0,0.00035616,7]
[392512973,1761596937432,-500.0,0.00035616,7]
[392512974,1761596937536,-501.55516335,0.00035616,7]
[392512975,1761596937561,-506.97959715,0.00035616,7]
[392512976,1761596937587,-500.0,0.00035616,7]
[392512977,1761596937613,-503.64020746,0.00035616,7]
[392512978,1761596937638,-507.13041404,0.00035616,7]
[392512979,1761596937661,-500.0,0.00035616,7]
[392512980,1761596937686,-500.0,0.00035616,2]
[392512981,1761596937710,-500.0,0.00035616,2]
[392512982,1761596937736,-500.0,0.00035616,7]
[392512983,1761596937761,-500.0,0.00035616,7]
[392512984,1761596937786,-224.56727086,0.00035616,7]
[392512985,1761596937809,-472.63071839,0.00035616,7]
[392512986,1761596937832,-500.0,0.00035616,7]
[392512987,1761596937856,-500.0,0.00035616,7]
[392512988,1761596937882,-500.0,0.00035616,7]
[392512989,1761596937906,-502.7814775,0.00035616,7]
[392512990,1761596937930,-500.0,0.00035616,7]
[392512991,1761596937955,-516.72478523,0.00035616,7]
[392512992,1761596937978,-500.0,0.00035616,7]
[392512993,1761596938004,-500.0,0.00035616,7]
[392512994,1761596938028,-500.0,0.00035616,7]
[392512995,1761596938052,-505.57438394,0.00035616,7]
[392512996,1761596938077,-1000.0,0.00035616,120]
[392512997,1761596938101,-503.74037185,0.00035616,7]
[392512998,1761596938124,-514.24,0.00035616,7]
[392512999,1761596938148,-506.11515514,0.00035616,7]
[392513000,1761596938172,-500.0,0.00035616,7]
[392513001,1761596938200,-500.0,0.00035616,7]
[392513002,1761596938223,-500.0,0.00035616,2]
[392513003,1761596938248,-500.0,0.00035616,7]
[392513004,1761596938272,-300.0,0.00035616,7]
[392513005,1761596938296,-503.53721075,0.00035616,7]
[392513006,1761596938323,-500.0,0.00035616,7]
[392513007,1761596938349,-500.0,0.00035616,7]
[392513008,1761596938374,-500.0,0.00035616,7]
[392513009,1761596938398,-500.0,0.00035616,7]
[392513010,1761596938422,-513.67736664,0.00035616,7]
[392513011,1761596938447,-500.0,0.00035616,7]
[392513012,1761596938471,-500.0,0.00035616,7]
[392513013,1761596938496,-500.0,0.00035616,7]
[392513014,1761596938520,-505.84838099,0.00035616,7]
[392513015,1761596938544,-500.0,0.00035616,7]
[392513016,1761596938568,-505.90974919,0.00035616,7]
[392513017,1761596938593,-641.43262252,0.00035616,7]
[392513018,1761596938619,-500.0,0.00035616,7]
[392513019,1761596938643,-500.0,0.00035616,7]
[392513020,1761596938667,-510.08447044,0.00035616,7]
[392513021,1761596938692,-596.4,0.00035616,7]
[392513022,1761596938718,-423.61492135,0.00035616,7]
[392513023,1761596938743,-281.52440486,0.00035616,7]
[392513024,1761596938856,-500.0,0.00035616,7]
[392513025,1761596938881,-500.0,0.00035616,7]
[392513026,1761596938905,-500.0,0.00035616,7]
[392513027,1761596938929,-502.23610721,0.00035616,7]
[392513028,1761596938952,-500.0,0.00035616,7]
[392513029,1761596938975,-500.0,0.00035616,7]
[392513030,1761596939006,-500.0,0.00035616,7]
[392513031,1761596939029,-507.88195314,0.00035616,7]
[392513032,1761596939053,-511.52525496,0.00035616,7]
[392513033,1761596939076,-500.0,0.00035616,7]
[392513034,1761596939100,-370.23665253,0.00035616,7]
[392513035,1761596939124,-500.0,0.00035616,7]
[392513036,1761596939150,-176.87757748,0.00035616,7]
[392513037,1761596939174,-518.68566928,0.00035616,7]
[392513038,1761596939198,-500.0,0.00035616,7]
[392513039,1761596939222,-500.0,0.00035616,7]
[392513040,1761596939246,-500.0,0.00035616,7]
[392513041,1761596939270,-517.34756307,0.00035616,7]
[392513042,1761596939294,-520.00759616,0.00035616,7]
[392513043,1761596939319,-500.0,0.00035616,7]
[392513044,1761596939344,-277.3861601,0.00035616,7]
[392513045,1761596939370,-645.93374354,0.00035616,7]
[392513046,1761596939393,-514.690963,0.00035616,7]
[392513047,1761596939417,-500.0,0.00035616,7]
[392513048,1761596939441,-500.0,0.00035616,7]
[392513049,1761596939467,-500.0,0.00035616,7]
[392513050,1761596939493,-600.0,0.00035616,120]
[392513051,1761596939519,-500.0,0.00035616,7]
[392513052,1761596939544,-500.0,0.00035616,7]
[392513053,1761596939570,-500.0,0.00035616,7]
[392513054,1761596939596,-500.0,0.00035616,7]
[392513055,1761596939620,-513.92780217,0.00035616,7]
[392513056,1761596939644,-500.0,0.00035616,7]
[392513057,1761596939669,-500.0,0.00035616,7]
[392513058,1761596939695,-403.96975981,0.00035616,7]
[392513059,1761596939725,-500.0,0.00035616,7]
[392513060,1761596939753,-500.0,0.00035616,7]
[392513061,1761596939779,-500.0,0.00035616,7]
[392513062,1761596939804,-500.0,0.00035616,7]
[392513063,1761596939828,-515.94173933,0.00035616,7]
[392513064,1761596939852,-545.25352492,0.00035616,7]
[392513065,1761596939878,-500.0,0.00035616,7]
[392513066,1761596939904,-500.0,0.00035616,7]
[392513067,1761596939928,-500.0,0.00035616,7]
[392513068,1761596939951,-589.2,0.00035616,7]
[392513069,1761596939975,-303.06475501,0.00035616,7]
[392513070,1761596939999,-500.0,0.00035616,7]
[392513071,1761596940123,-483.65264211,0.00035616,7]
[392513072,1761596940149,-500.0,0.00035616,7]
[392513073,1761596940174,-500.0,0.00035616,7]
[392513074,1761596940199,-500.0,0.00035616,7]
[392513075,1761596940223,-500.0,0.00035616,7]
[392513076,1761596940248,-500.0,0.00035616,7]
[392513077,1761596940273,-500.0,0.00035616,7]
[392513078,1761596940298,-506.36958227,0.00035616,7]
[392513079,1761596940324,-500.0,0.00035616,7]
[392513080,1761596940353,-500.0,0.00035616,7]
[392513081,1761596940379,-500.0,0.00035616,7]
[392513082,1761596940404,-507.64829771,0.00035616,7]
[392513083,1761596940428,-533.00300061,0.00035616,7]
[392513084,1761596940452,-500.87204215,0.00035616,7]
[392513085,1761596940476,-545.34182741,0.00035616,7]
[392513086,1761596940500,-500.0,0.00035616,7]
[392513087,1761596940529,-500.0,0.00035616,7]
[392513088,1761596940553,-500.0,0.00035616,7]
[392513089,1761596940578,-500.0,0.00035616,7]
[392513090,1761596940605,-587.46466645,0.00035616,7]
[392513091,1761596940629,-500.0,0.00035616,7]
[392513092,1761596940654,-500.0,0.00035616,7]
[392513093,1761596940678,-500.0,0.00035616,7]
[392513094,1761596940702,-584.42716479,0.00035616,7]
[392513095,1761596940749,-569.67652835,0.00035616,7]
[392513096,1761596940794,-509.51923717,0.00035616,7]
[392513097,1761596940846,-500.0,0.00035616,7]
[392513098,1761596940892,-500.0,0.00035616,7]
[392513099,1761596940942,-1389.46,0.00035616,7]
[392513100,1761596940982,-509.83200334,0.00035616,7]
[392513101,1761596941022,-500.0,0.00035616,7]
[392513102,1761596941060,-500.0,0.00035616,7]
[392513103,1761596941101,-504.56889581,0.00035616,7]
[392513104,1761596941138,-504.7287341,0.00035616,7]
[392513105,1761596941181,-516.25258082,0.00035616,7]
[392513106,1761596941222,-500.0,0.00035616,7]
[392513107,1761596941260,-500.0,0.00035616,7]
[392513108,1761596941298,-512.35873486,0.00035616,7]
[392513109,1761596941336,-500.0,0.00035616,7]
[392513110,1761596941373,-500.0,0.00035616,7]
[392513111,1761596941415,-500.0,0.00035616,7]
[392513112,1761596941455,-500.0,0.00035616,7]
[392513113,1761596941496,-500.0,0.00035616,7]
[392513114,1761596941535,-565.16536911,0.00035616,7]
[392513115,1761596941574,-500.0,0.00035616,7]
[392513116,1761596941616,-500.0,0.00035616,7]
[392513117,1761596941754,-500.0,0.00035616,7]
[392513118,1761596941804,-500.0,0.00035616,7]
[392513119,1761596941827,-500.0,0.00035616,7]
[392513120,1761596941850,-500.0,0.00035616,7]
[392513121,1761596941873,-508.79881806,0.00035616,7]
[392513122,1761596941897,-587.69325404,0.00035616,7]
[392513123,1761596941920,-411.93446688,0.00035616,7]
[392513124,1761596941942,-506.45464497,0.00035616,7]
[392513125,1761596941966,-510.21433904,0.00035616,7]
[392513126,1761596941990,-503.26954433,0.00035616,7]
[392513127,1761596942015,-500.0,0.00035616,7]
[392513128,1761596942039,-500.0,0.00035616,7]
[392513129,1761596942064,-518.48508526,0.00035616,7]
[392513130,1761596942088,-512.47781083,0.00035616,7]
[392513131,1761596942113,-500.0,0.00035616,7]
[392513132,1761596942138,-545.8041835,0.00035616,7]
[392513133,1761596942161,-500.0,0.00035616,7]
[392513134,1761596942185,-500.0,0.00035616,7]
[392513135,1761596942209,-500.0,0.00035616,7]
[392513136,1761596942234,-509.97512414,0.00035616,7]
[392513137,1761596942257,-500.0,0.00035616,7]
[392513138,1761596942280,-500.0,0.00035616,7]
[392513139,1761596942304,-572.22261172,0.00035616,7]
[392513140,1761596942333,-514.18186517,0.00035616,7]
[392513141,1761596942358,-542.33675151,0.00035616,7]
[392513142,1761596942383,-513.65659878,0.00035616,7]
[392513143,1761596942408,-442.28556185,0.00035616,7]
[392513144,1761596942431,-535.76459255,0.00035616,7]
[392513145,1761596942455,-500.0,0.00035616,7]
[392513146,1761596942483,-500.0,0.00035616,7]
[392513147,1761596942506,-508.11742143,0.00035616,7]
[392513148,1761596942529,-589.7233586,0.00035616,7]
[392513149,1761596942552,-500.0,0.00035616,7]
[392513150,1761596942576,-500.0,0.00035616,7]
[392513151,1761596942603,-636.22658432,0.00035616,7]
[392513152,1761596942626,-561.83105251,0.00035616,7]
[392513153,1761596942649,-500.0,0.00035616,7]
[392513154,1761596942672,-500.0,0.00035616,7]
[392513155,1761596942695,-503.98801855,0.00035616,7]
[392513156,1761596942717,-500.0,0.00035616,7]
[392513157,1761596942740,-500.0,0.00035616,7]
[392513158,1761596942762,-500.0,0.00035616,7]
[392513159,1761596942784,-500.0,0.00035616,7]
[392513160,1761596942805,-500.0,0.00035616,7]
[392513161,1761596942829,-500.0,0.00035616,7]
[392513162,1761596942852,-514.90442214,0.00035616,7]
[392513163,1761596942876,-500.0,0.00035616,7]
[392513164,1761596942901,-500.0,0.00035616,7]
[392513165,1761596942924,-511.19407093,0.00035616,7]
[392513166,1761596942949,-500.0,0.00035616,7]
[392513167,1761596942972,-500.0,0.00035616,7]
[392513168,1761596942997,-500.0,0.00035616,7]
[392513169,1761596943024,-500.0,0.00035616,7]
[392513170,1761596943129,-410.72485517,0.00035616,7]
[392513171,1761596943157,-500.0,0.00035616,7]
[392513172,1761596943181,-500.0,0.00035616,7]
[392513173,1761596943204,-500.0,0.00035616,7]
[392513174,1761596943226,-551.41426369,0.00035616,7]
[392513175,1761596943248,-500.0,0.00035616,7]
[392513176,1761596943272,-500.0,0.00035616,7]
[392513177,1761596943295,-500.0,0.00035616,7]
[392513178,1761596943318,-500.0,0.00035616,7]
[392513179,1761596943342,-518.75059014,0.00035616,7]
[392513180,1761596943367,-500.0,0.00035616,7]
[392513181,1761596943391,-500.0,0.00035616,7]
[392513182,1761596943415,-506.17876431,0.00035616,7]
[392513183,1761596943439,-500.0,0.00035616,7]
[392513184,1761596943463,-500.0,0.00035616,7]
[392513185,1761596943487,-500.0,0.00035616,7]
[392513186,1761596943510,-564.40554539,0.00035616,7]
[392513187,1761596943534,-505.19345795,0.00035616,7]
[392513188,1761596943557,-500.0,0.00035616,7]
[392513189,1761596943580,-500.0,0.00035616,7]
[392513190,1761596943604,-500.0,0.00035616,7]
[392513191,1761596943626,-502.52446758,0.00035616,7]
[392513192,1761596943650,-507.82873495,0.00035616,7]
[392513193,1761596943673,-531.3,0.00035616,7]
[392513194,1761596943697,-500.0,0.00035616,7]
[392513195,1761596943723,-445.55327343,0.00035616,7]
[392513196,1761596943751,-500.0,0.00035616,7]
[392513197,1761596943775,-504.29180728,0.00035616,5]
[392513198,1761596943799,-539.28866139,0.00035616,7]
[392513199,1761596943826,-500.0,0.00035616,7]
[392513200,1761596943849,-500.0,0.00035616,7]
[392513201,1761596943873,-500.0,0.00035616,7]
[392513202,1761596943898,-500.0,0.00035616,7]
[392513203,1761596943921,-500.0,0.00035616,7]
[392513204,1761596943944,-548.60689577,0.00035616,7]
[392513205,1761596943966,-500.0,0.00035616,7]
[392513206,1761596943989,-500.0,0.00035616,7]
[392513207,1761596944012,-512.64782471,0.00035616,7]
[392513208,1761596944035,-595.71429073,0.00035616,7]
[392513209,1761596944058,-500.0,0.00035616,7]
[392513210,1761596944082,-521.10915238,0.00035616,7]
[392513211,1761596944105,-526.99559196,0.00035616,7]
[392513212,1761596944128,-500.0,0.00035616,7]
[392513213,1761596944152,-503.50247993,0.00035616,7]
[392513214,1761596944177,-500.0,0.00035616,7]
[392513215,1761596944200,-422.02263331,0.00035616,7]
[392513216,1761596944224,-500.0,0.00035616,7]
[392513217,1761596944247,-500.0,0.00035616,7]
[392513218,1761596944272,-511.19258894,0.00035616,7]
[392513219,1761596944296,-500.0,0.00035616,7]
[392513220,1761596944319,-500.0,0.00035616,7]
[392513221,1761596944420,-566.14950177,0.00035616,7]
[392513222,1761596944446,-500.0,0.00035616,7]
[392513223,1761596944470,-500.0,0.00035616,7]
[392513224,1761596944499,-500.0,0.00035616,7]
[392513225,1761596944523,-528.90545364,0.00035616,7]
[392513226,1761596944546,-500.0,0.00035616,7]
[392513227,1761596944570,-461.88867677,0.00035616,7]
[392513228,1761596944595,-250.17967953,0.00035616,7]
[392513229,1761596944622,-500.0,0.00035616,7]
[392513230,1761596944645,-500.0,0.00035616,7]
[392513231,1761596944668,-542.73741815,0.00035616,7]
[392513232,1761596944694,-514.69155379,0.00035616,7]
[392513233,1761596944718,-511.23759601,0.00035616,7]
[392513234,1761596944742,-519.108271,0.00035616,7]
[392513235,1761596944766,-500.0,0.00035616,7]
[392513236,1761596944788,-3341.12,0.00035616,7]
[392513237,1761596944811,-512.83943105,0.00035616,7]
[392513238,1761596944834,-355.75484569,0.00035616,7]
[392513239,1761596944856,-507.88177784,0.00035616,7]
[392513240,1761596944880,-410.487934,0.00035616,7]
[392513241,1761596944906,-500.0,0.00035616,7]
[392513242,1761596944930,-500.0,0.00035616,7]
[392513243,1761596944952,-500.0,0.00035616,7]
[392513244,1761596944975,-500.0,0.00035616,7]
[392513245,1761596944999,-545.88084618,0.00035616,7]
[392513246,1761596945024,-500.0,0.00035616,7]
[392513247,1761596945048,-500.0,0.00035616,7]
[392513248,1761596945072,-515.71127129,0.00035616,7]
[392513249,1761596945095,-412.38427635,0.00035616,7]
[392513250,1761596945119,-500.0,0.00035616,7]
[392513251,1761596945145,-530.77669876,0.00035616,7]
[392513252,1761596945168,-500.0,0.00035616,7]
[392513253,1761596945190,-500.0,0.00035616,7]
[392513254,1761596945213,-500.0,0.00035616,7]
[392513255,1761596945237,-450.28148406,0.00035616,7]
[392513256,1761596945261,-500.0,0.00035616,7]
[392513257,1761596945284,-500.0,0.00035616,7]
[392513258,1761596945306,-872.86,0.00035616,7]
[392513259,1761596945330,-500.0,0.00035616,7]
[392513260,1761596945353,-500.0,0.00035616,7]
[392513261,1761596945378,-500.0,0.00035616,7]
[392513262,1761596945402,-500.0,0.00035616,7]
[392513263,1761596945426,-500.0,0.00035616,7]
[392513264,1761596945450,-500.0,0.00035616,7]
[392513265,1761596945473,-500.0,0.00035616,7]
[392513266,1761596945497,-500.0,0.00035616,7]
[392513267,1761596945519,-500.0,0.00035616,7]
[392513268,1761596945542,-500.0,0.00035616,7]
[392513269,1761596945565,-1000.0,0.00035616,7]
[392513270,1761596945663,-524.52488643,0.00035616,7]
[392513271,1761596945690,-818.4,0.00035616,7]
[392513272,1761596945714,-500.0,0.00035616,7]
[392513273,1761596945741,-500.0,0.00035616,7]
[392513274,1761596945764,-500.0,0.00035616,7]
[392513275,1761596945788,-510.57834984,0.00035616,7]
[392513276,1761596945812,-500.0,0.00035616,7]
[392513277,1761596945834,-500.0,0.00035616,7]
[392513278,1761596945857,-508.02247619,0.00035616,7]
[392513279,1761596945880,-500.0,0.00035616,7]
[392513280,1761596945903,-500.0,0.00035616,7]
[392513281,1761596945928,-516.98606401,0.00035616,7]
[392513282,1761596945951,-500.0,0.00035616,7]
[392513283,1761596945974,-539.76488584,0.00035616,7]
[392513284,1761596945996,-516.88859795,0.00035616,7]
[392513285,1761596946017,-500.0,0.00035616,7]
[392513286,1761596946040,-693.42,0.00035616,7]
[392513287,1761596946062,-500.0,0.00035616,7]
[392513288,1761596946083,-516.29200713,0.00035616,7]
[392513289,1761596946106,-500.0,0.00035616,7]
[392513290,1761596946128,-507.87897794,0.00035616,7]
[392513291,1761596946151,-500.0,0.00035616,7]
[392513292,1761596946174,-545.91702337,0.00035616,7]
[392513293,1761596946196,-505.37023678,0.00035616,7]
[392513294,1761596946232,-562.3971315,0.00035616,7]
[392513295,1761596946272,-500.0,0.00035616,7]
[392513296,1761596946318,-527.70253107,0.00035616,7]
[392513297,1761596946364,-500.0,0.00035616,7]
[392513298,1761596946407,-500.0,0.00035616,7]
[392513299,1761596946444,-500.0,0.00035616,7]
[392513300,1761596946484,-500.0,0.00035616,7]
[392513301,1761596946519,-500.0,0.00035616,7]
[392513302,1761596946555,-521.41131978,0.00035616,7]
[392513303,1761596946591,-500.0,0.00035616,2]
[392513304,1761596946627,-500.0,0.00035616,7]
[392513305,1761596946666,-500.0,0.00035616,7]
[392513306,1761596946705,-547.31250532,0.00035616,7]
[392513307,1761596946743,-500.0,0.00035616,7]
[392513308,1761596946780,-505.18517594,0.00035616,7]
[392513309,1761596946818,-529.27917905,0.00035616,7]
[392513310,1761596946856,-500.0,0.00035616,7]
[392513311,1761596946894,-500.0,0.00035616,7]
[392513312,1761596946931,-531.10455009,0.00035616,7]
[392513313,1761596946971,-505.64670538,0.00035616,7]
[392513314,1761596947011,-727.56,0.00035616,7]
[392513315,1761596947048,-500.0,0.00035616,2]
[392513316,1761596947086,-541.49670759,0.00035616,7]
[392513317,1761596947125,-196.70611567,0.00035616,7]
[392513318,1761596947267,-1003.0,0.00035616,7]
[392513319,1761596947292,-507.07995833,0.00035616,7]
[392513320,1761596947316,-500.0,0.00035616,7]
[392513321,1761596947343,-2104.75,0.00035616,7]
[392513322,1761596947369,-510.35115546,0.00035616,7]
[392513323,1761596947392,-519.38247593,0.00035616,7]
[392513324,1761596947414,-500.0,0.00035616,7]
[392513325,1761596947438,-529.76158995,0.00035616,7]
[392513326,1761596947462,-580.88243647,0.00035616,7]
[392513327,1761596947486,-500.0,0.00035616,7]
[392513328,1761596947510,-500.0,0.00035616,2]
[392513329,1761596947533,-500.0,0.00035616,7]
[392513330,1761596947556,-500.0,0.00035616,7]
[392513331,1761596947580,-500.0,0.00035616,2]
[392513332,1761596947604,-500.0,0.00035616,7]
[392513333,1761596947628,-546.75,0.00035616,7]
[392513334,1761596947652,-500.0,0.00035616,7]
[392513335,1761596947674,-500.0,0.00035616,7]
[392513336,1761596947697,-506.56201271,0.00035616,7]
[392513337,1761596947722,-500.0,0.00035616,7]
[392513338,1761596947752,-500.0,0.00035616,2]
[392513339,1761596947776,-500.0,0.00035616,7]
[392513340,1761596947800,-500.0,0.00035616,7]
[392513341,1761596947825,-500.0,0.00035616,7]
[392513342,1761596947848,-500.0,0.00035616,2]
[392513343,1761596947872,-249.44837579,0.00035616,7]
[392513344,1761596947896,-455.09305857,0.00035616,7]
[392513345,1761596947922,-500.0,0.00035616,7]
[392513346,1761596947945,-159.79332891,0.00035616,2]
[392513347,1761596947968,-500.0,0.00035616,7]
[392513348,1761596947990,-500.0,0.00035616,7]
[392513349,1761596948013,-500.0,0.00035616,7]
[392513350,1761596948042,-500.0,0.00035616,7]
[392513351,1761596948071,-518.21643825,0.00035616,7]
[392513352,1761596948095,-512.11461258,0.00035616,7]
[392513353,1761596948119,-500.0,0.00035616,7]
[392513354,1761596948142,-572.66828703,0.00035616,7]
[392513355,1761596948166,-508.64366943,0.00035616,7]
[392513356,1761596948191,-500.0,0.00035616,7]
[392513357,1761596948221,-457.59461548,0.00035616,7]
[392513358,1761596948247,-500.0,0.00035616,7]
[392513359,1761596948271,-500.0,0.00035616,7]
[392513360,1761596948295,-500.0,0.00035616,7]
[392513361,1761596948319,-552.21036496,0.00035616,7]
[392513362,1761596948344,-500.0,0.00035616,7]
[392513363,1761596948368,-611.49881362,0.00035616,7]
[392513364,1761596948394,-642.20952324,0.00035616,7]
[392513365,1761596948494,-500.0,0.00035616,7]
[392513366,1761596948520,-523.65554761,0.00035616,7]
[392513367,1761596948544,-500.0,0.00035616,7]
[392513368,1761596948567,-500.0,0.00035616,7]
[392513369,1761596948591,-500.0,0.00035616,7]
[392513370,1761596948615,-500.0,0.00035616,2]
[392513371,1761596948639,-508.87832562,0.00035616,7]
[392513372,1761596948665,-500.0,0.00035616,7]
[392513373,1761596948688,-507.02750637,0.00035616,7]
[392513374,1761596948713,-500.0,0.00035616,7]
[392513375,1761596948740,-500.0,0.00035616,7]
[392513376,1761596948763,-500.0,0.00035616,7]
[392513377,1761596948788,-500.0,0.00035616,7]
[392513378,1761596948812,-604.61620616,0.00035616,7]
[392513379,1761596948837,-515.58104554,0.00035616,7]
[392513380,1761596948860,-534.42105069,0.00035616,7]
[392513381,1761596948883,-500.0,0.00035616,7]
[392513382,1761596948907,-511.9331483,0.00035616,7]
[392513383,1761596948931,-531.22452676,0.00035616,7]
[392513384,1761596948954,-500.0,0.00035616,7]
[392513385,1761596948982,-500.0,0.00035616,7]
[392513386,1761596949006,-500.0,0.00035616,7]
[392513387,1761596949030,-533.78787906,0.00035616,7]
[392513388,1761596949054,-509.57729949,0.00035616,7]
[392513389,1761596949078,-500.0,0.00035616,7]
[392513390,1761596949102,-500.0,0.00035616,7]
[392513391,1761596949126,-500.0,0.00035616,7]